fUST/lending_fUST_20240713
["ID","MTS","AMOUNT","RATE_DAILY","PERIOD"]
[331937212,1720875047215,-500.0,0.00024657,2]
[331937213,1720875047226,-300.0,0.00024657,2]
[331937214,1720875047235,-500.0,0.00024657,2]
[331937215,1720875047247,-500.0,0.00024657,2]
[331937216,1720875047257,-500.0,0.00024657,2]
[331937217,1720875047267,-151.0,0.00024657,7]
[331937218,1720875047277,-156.37,0.00024657,2]
[331937219,1720875047286,-151.0,0.00024657,7]
[331937220,1720875047296,-151.0,0.00024657,7]
[331937221,1720875047306,-151.0,0.00024657,7]
[331937222,1720875047315,-151.0,0.00024657,7]
[331937223,1720875047324,-151.0,0.00024657,7]
[331937224,1720875047335,-151.0,0.00024657,7]
[331937225,1720875047344,-151.0,0.00024657,7]
[331937226,1720875047353,-151.0,0.00024657,7]
[331937227,1720875047362,-151.0,0.00024657,7]
[331937228,1720875047371,-248.472287,0.00024657,7]
[331937229,1720875047380,-200.0,0.00024657,2]
[331937230,1720875047389,-500.0,0.00024657,2]
[331937231,1720875047398,-211.18693919,0.00024657,2]
[331937232,1720875047408,-500.0,0.00024657,2]
[331937233,1720875047417,-500.0,0.00024657,2]
[331937234,1720875047426,-500.0,0.00024657,2]
[331937235,1720875047435,-500.0,0.00024657,2]
[331937236,1720875047445,-500.0,0.00024657,2]
[331937237,1720875047454,-500.0,0.00024657,2]
[331937238,1720875047463,-500.0,0.00024657,2]
[331937239,1720875047472,-500.0,0.00024657,2]
[331937240,1720875047481,-500.0,0.00024657,2]
[331937241,1720875047491,-500.0,0.00024657,2]
[331937242,1720875047500,-502.17167802,0.00024657,2]
[331937243,1720875047510,-500.0,0.00024657,2]
[331937244,1720875047519,-500.0,0.00024657,2]
[331937245,1720875047529,-500.0,0.00024657,2]
[331937246,1720875047538,-500.0,0.00024657,2]
[331937247,1720875047548,-500.0,0.00024657,2]
[331937248,1720875047557,-500.0,0.00024657,2]
[331937249,1720875047567,-500.0,0.00024657,2]
[331937250,1720875047577,-500.0,0.00024657,2]
[331937251,1720875047587,-200.0,0.00024657,7]
[331937252,1720875047596,-500.0,0.00024657,2]
[331937253,1720875047605,-500.0,0.00024657,2]
[331937254,1720875047615,-500.0,0.00024657,2]
[331937255,1720875047624,-500.0,0.00024657,2]
[331937256,1720875047634,-500.0,0.00024657,2]
[331937257,1720875047651,-500.0,0.00024657,2]
[331937258,1720875047660,-258.993471,0.00024657,7]
[331937259,1720875047670,-258.993471,0.00024657,7]
[331937260,1720875047679,-258.993471,0.00024657,7]
[331937261,1720875047688,-258.993471,0.00024657,7]
[331937262,1720875047697,-258.993471,0.00024657,7]
[331937263,1720875047706,-258.993471,0.00024657,7]
[331937264,1720875047716,-258.993471,0.00024657,7]
[331937265,1720875047726,-258.993471,0.00024657,7]
[331937266,1720875047735,-258.993471,0.00024657,7]
[331937267,1720875047745,-3322.27,0.00024657,2]
[331937268,1720875047754,-258.993471,0.00024657,7]
[331937269,1720875047764,-258.993471,0.00024657,7]
[331937270,1720875047773,-258.993471,0.00024657,7]
[331937271,1720875047783,-258.993471,0.00024657,7]
[331937272,1720875047792,-258.993471,0.00024657,7]
[331937273,1720875047802,-258.993471,0.00024657,7]
[331937274,1720875047811,-258.993471,0.00024657,7]
[331937275,1720875047821,-500.0,0.00024657,2]
[331937276,1720875047935,-500.0,0.00024657,2]
[331937277,1720875047947,-500.0,0.00024657,2]
[331937278,1720875047958,-500.0,0.00024657,2]
[331937279,1720875047967,-500.0,0.00024657,2]
[331937280,1720875047978,-612.26,0.00024657,2]
[331937281,1720875047987,-500.0,0.00024657,2]
[331937282,1720875047997,-500.0,0.00024657,2]
[331937283,1720875048006,-500.0,0.00024657,2]
[331937284,1720875048018,-500.0,0.00024657,2]
[331937285,1720875048027,-500.0,0.00024657,2]
[331937286,1720875048036,-500.0,0.00024657,2]
[331937287,1720875048046,-500.0,0.00024657,2]
[331937289,1720875048056,-500.0,0.00024657,2]
[331937290,1720875048065,-500.0,0.00024657,2]
[331937292,1720875048075,-498.35620458,0.00024657,2]
[331937294,1720875048085,-500.0,0.00024657,2]
[331937295,1720875048094,-500.0,0.00024657,2]
[331937296,1720875048104,-500.0,0.00024657,2]
[331937297,1720875048113,-602.73206834,0.00024657,2]
[331937298,1720875048122,-500.0,0.00024657,2]
[331937299,1720875048132,-500.0,0.00024657,2]
[331937300,1720875048141,-500.0,0.00024657,2]
[331937301,1720875048150,-500.0,0.00024657,2]
[331937302,1720875048159,-500.0,0.00024657,2]
[331937303,1720875048168,-151.0,0.00024657,7]
[331937304,1720875048177,-151.0,0.00024657,7]
[331937305,1720875048187,-151.0,0.00024657,7]
[331937306,1720875048196,-151.0,0.00024657,7]
[331937307,1720875048206,-151.0,0.00024657,7]
[331937308,1720875048215,-151.0,0.00024657,7]
[331937309,1720875048224,-500.0,0.00024657,2]
[331937310,1720875048233,-151.0,0.00024657,7]
[331937311,1720875048242,-151.0,0.00024657,7]
[331937312,1720875048251,-500.0,0.00024657,2]
[331937313,1720875048261,-151.0,0.00024657,7]
[331937314,1720875048271,-174.633118,0.00024657,7]
[331937315,1720875048281,-500.0,0.00024657,2]
[331937316,1720875048290,-237.585758,0.00024657,7]
[331937317,1720875048300,-397.4864841,0.00024657,2]
[331937318,1720875048309,-500.0,0.00024657,2]
[331937319,1720875048319,-236.321118,0.00024657,2]
[331937320,1720875048328,-500.0,0.00024657,2]
[331937321,1720875048338,-151.12760259,0.00024811,2]
[331937322,1720875048348,-258.993471,0.00024891,7]
[331937323,1720875048357,-258.993471,0.00024891,7]
[331937324,1720875048367,-1807.61122409,0.00024891,3]
[331937325,1720875048377,-151.0,0.00024901,7]
[331937326,1720875048388,-151.0,0.00024901,7]
[331937327,1720875048397,-151.0,0.00024911,7]
[331937328,1720875048406,-258.993471,0.00024911,7]
[331937329,1720875048415,-258.993479,0.00024911,7]
[331937330,1720875048424,-151.0,0.00024911,7]
[331937331,1720875048433,-165.932985,0.00024921,7]
[331937332,1720875048443,-500.0,0.0002493,2]
[331937333,1720875048452,-501.83492839,0.00024931,2]
[331937334,1720875048462,-368.93,0.00024931,2]
[331937335,1720875048471,-500.0,0.00024931,2]
[331937336,1720875048480,-500.0,0.00024931,2]
[331937337,1720875048490,-319.06,0.00024931,2]
[331937338,1720875048500,-500.0,0.00024931,2]
[331937339,1720875048510,-545.73,0.00024931,2]
[331937340,1720875048519,-500.0,0.00024931,2]
[331937341,1720875048528,-423.4,0.00024931,2]
[331937342,1720875048537,-500.0,0.00024931,2]
[331937343,1720875048547,-3322.27,0.00024931,2]
[331937344,1720875048556,-612.26,0.00024931,2]
[331937345,1720875048567,-154.8107839,0.00024931,2]
[331937346,1720875048576,-500.0,0.00024931,2]
[331937347,1720875048585,-500.0,0.00024931,2]
[331937348,1720875048594,-500.0,0.00024931,2]
[331937349,1720875048604,-150.0,0.00024987,2]
[331937350,1720875048613,-150.112233,0.00025,2]
[331937351,1720875048623,-150.112233,0.00025,2]
[331937352,1720875048632,-151.12760258,0.00025007,2]
[331937353,1720875048642,-211.2199567,0.00025011,2]
[331937354,1720875048651,-9346.83,0.00025118,3]
[331937355,1720875048660,-11216.2,0.00025128,3]
[331937356,1720875048670,-7200.52,0.00025138,3]
[331937357,1720875048680,-13459.44,0.00025168,3]
[331937358,1720875048689,-1807.61122409,0.00025179,3]
[331937359,1720875048698,-153.0,0.00025189,2]
[331937360,1720875048708,-153.0,0.00025189,2]
[331937361,1720875048717,-153.0,0.00025189,2]
[331937362,1720875048726,-153.0,0.00025189,2]
[331937363,1720875048735,-153.0,0.00025189,2]
[331937364,1720875048745,-153.0,0.00025189,2]
[331937365,1720875048754,-189.0,0.00025189,2]
[331937366,1720875048764,-189.0,0.00025189,2]
[331937367,1720875048773,-189.0,0.00025189,2]
[331937368,1720875048782,-189.0,0.00025189,2]
[331937369,1720875048792,-189.0,0.00025189,2]
[331937370,1720875048801,-189.0,0.00025189,2]
[331937371,1720875048810,-189.0,0.00025189,2]
[331937372,1720875048819,-189.0,0.00025189,2]
[331937373,1720875048828,-189.0,0.00025189,2]
[331937374,1720875048838,-189.0,0.00025189,2]
[331937375,1720875048847,-189.0,0.00025189,2]
[331937376,1720875048857,-189.0,0.00025189,2]
[331937377,1720875048867,-189.0,0.00025189,2]
[331937378,1720875048877,-189.0,0.00025189,2]
[331937379,1720875048886,-153.0,0.00025189,2]
[331937380,1720875048896,-153.0,0.00025189,2]
[331937381,1720875048905,-153.0,0.00025189,2]
[331937382,1720875048914,-153.0,0.00025189,2]
[331937383,1720875048923,-153.0,0.00025189,2]
[331937384,1720875048933,-153.0,0.00025189,2]
[331937385,1720875048942,-189.0,0.00025189,2]
[331937386,1720875048952,-189.0,0.00025189,2]
[331937387,1720875048961,-189.0,0.00025189,2]
[331937388,1720875048971,-189.0,0.00025189,2]
[331937389,1720875048984,-189.0,0.00025189,2]
[331937390,1720875048993,-189.0,0.00025189,2]
[331937391,1720875049003,-189.0,0.00025189,2]
[331937392,1720875049012,-189.0,0.00025189,2]
[331937393,1720875049021,-189.0,0.00025189,2]
[331937394,1720875049030,-189.0,0.00025189,2]
[331937395,1720875049040,-189.0,0.00025189,2]
[331937396,1720875049051,-189.0,0.00025189,2]
[331937397,1720875049061,-189.0,0.00025189,2]
[331937398,1720875049070,-189.0,0.00025189,2]
[331937399,1720875049079,-153.0,0.00025189,2]
[331937400,1720875049089,-189.0,0.00025189,2]
[331937401,1720875049098,-189.0,0.00025189,2]
[331937402,1720875049106,-189.0,0.00025189,2]
[331937403,1720875049116,-189.0,0.00025189,2]
[331937404,1720875049125,-189.0,0.00025189,2]
[331937405,1720875049134,-189.0,0.00025189,2]
[331937406,1720875049143,-189.0,0.00025189,2]
[331937407,1720875049152,-189.0,0.00025189,2]
[331937408,1720875049162,-189.0,0.00025189,2]
[331937409,1720875049172,-189.0,0.00025189,2]
[331937410,1720875049181,-215.75787137,0.00025189,2]
[331937411,1720875049190,-500.0,0.00025189,2]
[331937412,1720875049200,-179.47179718,0.00025189,2]
[331937413,1720875049209,-500.0,0.00025189,2]
[331937414,1720875049218,-500.0,0.00025189,2]
[331937415,1720875049227,-500.0,0.00025189,2]
[331937416,1720875049236,-257.19514354,0.00025189,2]
[331937417,1720875049245,-500.0,0.00025189,2]
[331937418,1720875049254,-504.50444801,0.00025189,2]
[331937419,1720875049263,-500.0,0.00025189,2]
[331937420,1720875049272,-500.0,0.00025189,2]
[331937421,1720875049281,-293.66536615,0.00025189,2]
[331937422,1720875049291,-404.83718142,0.00025189,2]
[331937423,1720875049300,-500.0,0.00025189,2]
[331937424,1720875049309,-500.0,0.00025189,2]
[331937425,1720875049318,-500.0,0.00025189,2]
[331937426,1720875049327,-500.0,0.00025189,2]
[331937427,1720875049337,-500.0,0.00025189,2]
[331937428,1720875049346,-153.0,0.0002519,2]
[331937429,1720875049357,-153.0,0.0002519,2]
[331937430,1720875049366,-153.0,0.0002519,2]
[331937431,1720875049376,-153.0,0.0002519,2]
[331937432,1720875049385,-153.0,0.0002519,2]
[331937433,1720875049396,-153.0,0.0002519,2]
[331937434,1720875049406,-153.0,0.0002519,2]
[331937435,1720875049415,-189.0,0.0002519,2]
[331937436,1720875049425,-189.0,0.0002519,2]
[331937437,1720875049435,-189.0,0.0002519,2]
[331937438,1720875049444,-189.0,0.0002519,2]
[331937439,1720875049454,-189.0,0.0002519,2]
[331937440,1720875049463,-189.0,0.0002519,2]
[331937441,1720875049472,-189.0,0.0002519,2]
[331937442,1720875049482,-189.0,0.0002519,2]
[331937443,1720875049491,-189.0,0.0002519,2]
[331937444,1720875049500,-189.0,0.0002519,2]
[331937445,1720875049511,-189.0,0.0002519,2]
[331937446,1720875049520,-189.0,0.0002519,2]
[331937447,1720875049529,-189.0,0.0002519,2]
[331937448,1720875049539,-189.0,0.0002519,2]
[331937449,1720875049549,-189.0,0.0002519,2]
[331937450,1720875049559,-189.0,0.0002519,2]
[331937451,1720875049569,-189.0,0.0002519,2]
[331937452,1720875049578,-153.0,0.0002519,2]
[331937453,1720875049591,-153.0,0.0002519,2]
[331937454,1720875049601,-153.0,0.0002519,2]
[331937455,1720875049611,-153.0,0.0002519,2]
[331937456,1720875049621,-153.0,0.0002519,2]
[331937457,1720875049630,-153.0,0.0002519,2]
[331937458,1720875049640,-189.0,0.0002519,2]
[331937459,1720875049649,-189.0,0.0002519,2]
[331937460,1720875049659,-189.0,0.0002519,2]
[331937461,1720875049669,-189.0,0.0002519,2]
[331937462,1720875049679,-189.0,0.0002519,2]
[331937463,1720875049688,-189.0,0.0002519,2]
[331937464,1720875049697,-189.0,0.0002519,2]
[331937465,1720875049706,-189.0,0.0002519,2]
[331937466,1720875049716,-189.0,0.0002519,2]
[331937467,1720875049726,-189.0,0.0002519,2]
[331937468,1720875049736,-189.0,0.0002519,2]
[331937469,1720875049745,-189.0,0.0002519,2]
[331937470,1720875049755,-189.0,0.0002519,2]
[331937471,1720875049764,-189.0,0.0002519,2]
[331937472,1720875049774,-153.0,0.0002519,2]
[331937473,1720875049785,-153.0,0.0002519,2]
[331937474,1720875049795,-153.0,0.0002519,2]
[331937475,1720875049804,-153.0,0.0002519,2]
[331937476,1720875049814,-153.0,0.0002519,2]
[331937477,1720875049823,-153.0,0.0002519,2]
[331937478,1720875049833,-189.0,0.0002519,2]
[331937479,1720875049847,-189.0,0.0002519,2]
[331937480,1720875049857,-189.0,0.0002519,2]
[331937481,1720875049867,-189.0,0.0002519,2]
[331937482,1720875049877,-189.0,0.0002519,2]
[331937483,1720875049887,-189.0,0.0002519,2]
[331937484,1720875049897,-189.0,0.0002519,2]
[331937485,1720875049906,-189.0,0.0002519,2]
[331937486,1720875049916,-189.0,0.0002519,2]
[331937487,1720875049925,-189.0,0.0002519,2]
[331937488,1720875049934,-189.0,0.0002519,2]
[331937489,1720875049944,-189.0,0.0002519,2]
[331937490,1720875049954,-189.0,0.0002519,2]
[331937491,1720875049964,-189.0,0.0002519,2]
[331937492,1720875049976,-153.0,0.0002519,2]
[331937493,1720875049987,-153.0,0.0002519,2]
[331937494,1720875049997,-153.0,0.0002519,2]
[331937495,1720875050007,-153.0,0.0002519,2]
[331937496,1720875050019,-153.0,0.0002519,2]
[331937497,1720875050028,-153.0,0.0002519,2]
[331937498,1720875050038,-189.0,0.0002519,2]
[331937499,1720875050047,-189.0,0.0002519,2]
[331937500,1720875050059,-189.0,0.0002519,2]
[331937501,1720875050068,-189.0,0.0002519,2]
[331937502,1720875050077,-189.0,0.0002519,2]
[331937503,1720875050089,-189.0,0.0002519,2]
[331937504,1720875050099,-189.0,0.0002519,2]
[331937505,1720875050109,-189.0,0.0002519,2]
[331937506,1720875050118,-189.0,0.0002519,2]
[331937507,1720875050127,-189.0,0.0002519,2]
[331937508,1720875050136,-189.0,0.0002519,2]
[331937509,1720875050148,-189.0,0.0002519,2]
[331937510,1720875050157,-189.0,0.0002519,2]
[331937511,1720875050167,-189.0,0.0002519,2]
[331937512,1720875050177,-5422.83367227,0.0002519,3]
[331937513,1720875050187,-500.0,0.00025199,2]
[331937514,1720875050196,-500.0,0.00025199,2]
[331937515,1720875050206,-500.0,0.00025199,2]
[331937516,1720875050215,-189.39290951,0.000252,2]
[331937517,1720875050224,-33509.59344455,0.000252,2]
[331937518,1720875050299,-26131.7706891,0.000252,2]
[331937539,1720875287048,4741.10517712,0.00016255,2]
[331937564,1720875402991,3858.96389588,0.00016255,2]
[331937579,1720875432511,1500.0,0.00016255,2]
[331937594,1720875526294,981.22062177,0.00016255,2]
[331937632,1720875720612,282.49013389,0.00016255,2]
[331937738,1720876027148,-406.51921666,0.00019165,2]
[331937739,1720876027173,-214.36836062,0.00019999,2]
[331937740,1720876044102,-85.63163938,0.00019999,2]
[331937742,1720876044127,-300.0,0.00019999,2]
[331937743,1720876044149,-982.69105725,0.0002,2]
[331937752,1720876117342,-784.41768215,0.0002,2]
[331937755,1720876117422,-784.41768215,0.0002,2]
[331937756,1720876117461,-589.86496489,0.0002,2]
[331937758,1720876142416,-567.25229378,0.00019165,2]
[331937760,1720876142449,-260.33939496,0.000199,2]
[331937761,1720876142485,-147.21815446,0.000199,2]
[331937763,1720876142518,-680.37353428,0.0002,2]
[331937764,1720876142556,-340.61663689,0.0002,2]
[331937766,1720876148156,-35622.42342339,0.0002,2]
[331937767,1720876148177,-1662.40864465,0.0002,2]
[331937768,1720876148198,-1000.0,0.0002,2]
[331937769,1720876148219,-438.100808,0.00021096,2]
[331937770,1720876156701,428.62808121,0.0002,2]
[331937776,1720876167950,905.61413647,0.0002,2]
[331937778,1720876173114,-4489.3134924,0.00022311,2]
[331937779,1720876173135,-155.02230177,0.0002237,2]
[331937780,1720876173156,-174.444312,0.00022381,2]
[331937781,1720876173178,-9474.3019438,0.00022435,2]
[331937784,1720876188510,208.36547115,0.0002,2]
[331937785,1720876190619,225.9011813,0.0002,2]
[331937795,1720876213771,261.90559786,0.00021,10]
[331937832,1720876234598,-1286.9556955,0.00022984,2]
[331937834,1720876234608,-390.8381046,0.00023012,2]
[331937837,1720876234618,-3730.0490929,0.00023184,2]
[331937838,1720876234631,-4692.22618,0.00024242,2]
[331938252,1720876238683,-1000.0,0.00024242,2]
[331938254,1720876238693,-407.55754938,0.00024586,2]
[331938256,1720876238703,-506.74518628,0.00024657,2]
[331938258,1720876238712,-500.0,0.00024657,2]
[331938260,1720876238721,-3045.42,0.00024657,2]
[331938262,1720876238730,-561.24,0.00024657,2]
[331938264,1720876238740,-500.0,0.00024657,2]
[331938266,1720876238750,-500.0,0.00024931,2]
[331938268,1720876238760,-2195.86542647,0.00024931,2]
[331938309,1720876240693,-6323.00869413,0.0002448,2]
[331938366,1720876243843,-5060.56985173,0.0002448,2]
[331938432,1720876246895,-28401.22643514,0.0002448,2]
[331938433,1720876246907,-849.55457353,0.00024931,2]
[331938434,1720876246917,-561.24,0.00024931,2]
[331938435,1720876246927,-500.0,0.00024931,2]
[331938436,1720876246938,-150.112233,0.00025,5]
[331938437,1720876246947,-4568.25,0.00025,18]
[331938438,1720876246958,-151.12760258,0.000251,2]
[331938439,1720876246968,-282.72,0.00025185,3]
[331938440,1720876246978,-3480.58527508,0.0002519,3]
[331938441,1720876246987,-848.19,0.0002519,3]
[331938442,1720876246996,-3909.55,0.0002519,3]
[331938443,1720876247006,-7455.25,0.0002519,3]
[331938444,1720876247017,-6212.71,0.0002519,3]
[331938445,1720876247029,-1740.29263754,0.00025195,3]
[331938446,1720876247040,-500.0,0.00025199,2]
[331938447,1720876247051,-353.15311361,0.00025199,2]
[331938448,1720876247062,-500.0,0.00025199,2]
[331938449,1720876247071,-500.0,0.00025199,2]
[331938450,1720876247083,-180.03660048,0.00025199,2]
[331938451,1720876247094,-500.0,0.00025199,2]
[331938452,1720876247105,-255.56575631,0.00025199,2]
[331938453,1720876247116,-500.0,0.00025199,2]
[331938454,1720876247126,-500.0,0.00025199,2]
[331938455,1720876247138,-500.0,0.00025199,2]
[331938456,1720876247147,-500.0,0.00025199,2]
[331938457,1720876247157,-583.386027,0.00025199,2]
[331938458,1720876247166,-500.0,0.00025199,2]
[331938459,1720876247175,-500.0,0.00025199,2]
[331938460,1720876247186,-500.0,0.00025199,2]
[331938461,1720876247196,-500.0,0.00025199,2]
[331938462,1720876247207,-500.0,0.00025199,2]
[331938463,1720876247217,-500.0,0.00025199,2]
[331938464,1720876247227,-500.0,0.00025199,2]
[331938465,1720876247237,-500.0,0.00025199,2]
[331938466,1720876247247,-218.63580199,0.00025199,2]
[331938467,1720876247256,-500.0,0.00025199,2]
[331938468,1720876247266,-500.0,0.00025199,2]
[331938469,1720876247390,-500.0,0.00025199,2]
[331938470,1720876247409,-500.0,0.00025199,2]
[331938471,1720876247420,-500.0,0.00025199,2]
[331938472,1720876247431,-418.15538258,0.00025199,2]
[331938473,1720876247441,-504.28519357,0.00025199,2]
[331938474,1720876247451,-58601.84147887,0.000252,2]
[331938475,1720876247461,-677.44336581,0.000252,3]
[331938476,1720876247472,-189.39290951,0.000252,2]
[331938477,1720876247481,-500.0,0.000252,7]
[331938478,1720876247495,-500.0,0.000252,7]
[331938479,1720876247512,-30000.0,0.00025204,2]
[331938480,1720876247524,-3143.29005624,0.00025204,2]
[331938481,1720876247535,-500.0,0.00025204,7]
[331938482,1720876247544,-500.0,0.00025204,7]
[331938483,1720876247554,-500.0,0.00025205,2]
[331938484,1720876247566,-3045.42,0.00025205,2]
[331938485,1720876247576,-561.24,0.00025205,2]
[331938486,1720876247587,-500.0,0.00025205,2]
[331938487,1720876247601,-500.0,0.00025473,2]
[331938488,1720876247612,-500.0,0.00025473,2]
[331938489,1720876247623,-500.0,0.00025473,2]
[331938490,1720876247634,-500.0,0.00025473,2]
[331938491,1720876247645,-500.0,0.00025479,2]
[331938492,1720876247655,-3045.42,0.00025479,2]
[331938493,1720876247666,-561.24,0.00025479,2]
[331938494,1720876247676,-500.0,0.00025479,2]
[331938495,1720876247686,-500.0,0.0002549,7]
[331938496,1720876247697,-500.0,0.0002549,7]
[331938497,1720876247710,-6961.17055016,0.0002549,3]
[331938498,1720876247720,-134249.89145679,0.000255,2]
[331938523,1720876892804,825.23944593,0.00016255,2]
[331938525,1720876938248,245.18734288,0.00016255,2]
[331938527,1720876977815,378.2458032,0.00016255,2]
[331938534,1720877149146,-194.72479327,0.00018899,2]
[331938535,1720877149168,-255.38306836,0.00018899,2]
[331938536,1720877149190,-182.77484663,0.00019165,2]
[331938537,1720877149212,-90.32936776,0.00019703,2]
[331938538,1720877149578,187.98618958,0.00016255,2]
[331938542,1720877180646,214.20443122,0.00016255,2]
[331938543,1720877183902,287.63681577,0.00016255,2]
[331938544,1720877183971,155.11378883,0.00016255,2]
[331938545,1720877184813,3926.28689793,0.00016255,2]
[331938548,1720877193216,181.84215111,0.00016255,2]
[331938552,1720877224814,13869.06062822,0.00016255,2]
[331938553,1720877231492,2660.77157843,0.00016255,2]
[331938554,1720877234158,-500.0,0.00018898,2]
[331938555,1720877234179,-633.6786563,0.00018898,2]
[331938556,1720877234201,-300.0,0.00018898,2]
[331938557,1720877234223,-300.0,0.00018898,2]
[331938558,1720877234245,-4441.24802218,0.00018899,2]
[331938559,1720877243350,57276.54193482,0.00016254,2]
[331938560,1720877250161,-2968.93218164,0.00018899,2]
[331938561,1720877258135,3139.96498768,0.00016255,2]
[331938562,1720877263053,187.87198309,0.00016255,2]
[331938563,1720877269327,205.93271116,0.00016255,2]
[331938564,1720877269442,318.617778,0.00016255,2]
[331938565,1720877269885,155.55168383,0.00016255,2]
[331938569,1720877277265,155.07135854,0.00016255,2]
[331938570,1720877278211,662.70423016,0.00016255,2]
[331938574,1720877286416,287.29671713,0.00016255,2]
[331938575,1720877289521,354.46681452,0.00016255,2]
[331938576,1720877290226,155.16610741,0.00016255,2]
[331938577,1720877291216,158.13355128,0.00016255,2]
[331938579,1720877293677,180.05717902,0.00016255,2]
[331938580,1720877293811,568.6009691,0.00016255,2]
[331938581,1720877293839,719.08714712,0.00016255,2]
[331938583,1720877300664,178.19646666,0.00016255,2]
[331938584,1720877302897,492.98180621,0.00016255,2]
[331938585,1720877304089,2120.86866751,0.00016255,2]
[331938587,1720877313635,402.60952539,0.00016255,2]
[331938588,1720877316592,2200.60150986,0.000139,2]
[331938589,1720877324025,566.91969589,0.00016255,2]
[331938590,1720877334653,529.80393287,0.00016255,2]
[331938591,1720877335508,155.01728238,0.00016255,2]
[331938597,1720877342200,284.50722532,0.00016255,2]
[331938598,1720877345727,777.60346913,0.00016255,2]
[331938599,1720877347228,725.50158015,0.00016255,2]
[331938600,1720877348204,-162.82680235,0.00018899,2]
[331938601,1720877348224,-491.60345067,0.00018899,2]
[331938602,1720877348245,-524.30218587,0.00018899,2]
[331938603,1720877348266,-300.0,0.00019154,2]
[331938604,1720877348285,-164.59,0.00019155,3]
[331938605,1720877348306,-493.82,0.00019155,3]
[331938606,1720877348326,-300.0,0.00019164,2]
[331938607,1720877348346,-1063.12812108,0.00019164,2]
[331938608,1720877348367,-205.74271144,0.00019165,2]
[331938609,1720877348388,-201.03633962,0.00019165,2]
[331938610,1720877348407,-271.9244408,0.00019165,2]
[331938611,1720877348427,-287.01556155,0.00019165,2]
[331938612,1720877348448,-329.18,0.00019693,3]
[331938613,1720877348468,-10462.78997647,0.00019703,2]
[331938614,1720877348487,-1274.35220727,0.00019703,2]
[331938615,1720877348506,-189.08196029,0.00019703,2]
[331938616,1720877348526,-181.96225967,0.00019703,2]
[331938617,1720877348546,-179.14178297,0.00019703,2]
[331938618,1720877348566,-227.68775465,0.00019703,2]
[331938619,1720877348586,-155.86895917,0.0002,2]
[331938620,1720877348605,-435.0,0.0002,2]
[331938621,1720877348625,-4665.9257767,0.0002,2]
[331938622,1720877361137,-492.52724663,0.00019703,2]
[331938623,1720877361163,-16570.72538281,0.0002,2]
[331938626,1720877365132,-45094.25177397,0.0002,2]
[331938627,1720877365160,-37993.89880235,0.0002,2]
[331938628,1720877365189,-90685.47872707,0.0002,2]
[331938629,1720877365213,-635.13250739,0.00020028,2]
[331938630,1720877365238,-24900.0,0.00020128,2]
[331938631,1720877365260,-329.18,0.00020525,3]
[331938632,1720877365282,-420.0,0.00020885,2]
[331938633,1720877365306,-658.36,0.00021063,3]
[331938634,1720877365328,-300.0,0.00021069,2]
[331938635,1720877365350,-428.267052,0.00021096,2]
[331938636,1720877365371,-166.666666,0.00022266,2]
[331938637,1720877365957,532.50847481,0.00019703,2]